Cogmind - Beta 13 @@@ ROGUE MODE // 2024.06.01 @ 17:32:43 Player: Trantor Result: Self-destructed Performance ------------- Evolutions (3) 1500 Regions Visited (7) 1400 Robots Destroyed (54) 270 Value Destroyed (1581) 1581 Prototype IDs (25) 500 Alien Tech Used (0) 0 Bonus (500) 500 TOTAL SCORE: 5751 Bonus ------- Entered Garrisons 200 Aligned with FarCom 300 Cogmind --------- Core Integrity 630/700 Matter 34/300 Energy 290/290 System Corruption 2% Temperature Warm (132) Movement Treading (158) Location -7/Garrison Parts ------- > --- POWER (1) -------- Improved Deuterium Engine > --- PROPULSION (5) --- Light Treads Light Treads Armored Treads Advanced Treads > --- UTILITY (4) ------ Large Storage Unit Advanced Visual Processing Unit Advanced Targeting Computer > --- WEAPON (3) ------- Guided Plasma Cannon > --- INVENTORY (15) --- Reinforced Ion Engine Nuclear Core Medium Storage Unit High-capacity Matter Pod (200) Particle Charger Kinecellerator Transmission Jammer Improved Light Armor Plating Improved Light Armor Plating Advanced Assault Cannon Advanced Assault Cannon Remote Datajack Hammer Peak State ------------ > --- POWER ------------ Improved Deuterium Engine > --- PROPULSION ------- Light Treads Light Treads Improved Treads Armored Treads Advanced Treads > --- UTILITY ---------- Large Storage Unit Advanced Visual Processing Unit Advanced Targeting Computer Improved Light Armor Plating > --- WEAPON ----------- Advanced Assault Cannon Advanced Assault Cannon Concussive RPG > --- INVENTORY -------- Reinforced Ion Engine Nuclear Core Medium Storage Unit High-capacity Matter Pod Particle Charger Kinecellerator Transmission Jammer Improved Light Armor Plating Improved Light Armor Plating Guided Plasma Cannon Advanced Assault Cannon Advanced Assault Cannon Remote Datajack Hammer [Rating: 39] Favorites ----------- Power Ion Engine Engine Ion Engine Propulsion Light Treads Treads Light Treads Leg Aluminum Leg Utility Large Storage Unit Device Terrain Scanner Storage Large Storage Unit Processor Advanced Visual Processing Unit Protection Light Armor Plating Weapon Light Cannon Energy Gun Heavy Laser Energy Cannon Guided Plasma Cannon Ballistic Gun Assault Rifle Ballistic Cannon Light Cannon Launcher Rocket Launcher Impact Weapon Hammer Build | -11 -10 -10 -10 -9 -8 -7 -7 ------- Run | Yrd Mat Min Exi Min Mat Fac Gar Slots Evolved 6 | . . . . . 4 2 . Power . | . . . . . . . . Propulsion 3 | . . . . . 2 1 . Utility 2 | . . . . . 2 . . Weapon 1 | . . . . . . 1 . Parts Attached 46 | 1 7 . . 5 17 14 2 Power 4 | . 1 . . 2 . 1 . Engine 4 | . 1 . . 2 . 1 . Core . | . . . . . . . . Reactor . | . . . . . . . . Propulsion 15 | . 2 . . 1 6 6 . Treads 15 | . 2 . . 1 6 6 . Leg . | . . . . . . . . Wheel . | . . . . . . . . Hover . | . . . . . . . . Flight . | . . . . . . . . Utility 16 | 1 2 . . 1 7 5 . Device 4 | 1 . . . . 3 . . Storage 1 | . 1 . . . . . . Processor 3 | . . . . . 1 2 . Hackware . | . . . . . . . . Protection 8 | . 1 . . 1 3 3 . Artifact . | . . . . . . . . Weapon 11 | . 2 . . 1 4 2 2 Energy Gun 1 | . . . . 1 . . . Energy Cannon 1 | . . . . . . . 1 Ballistic Gun . | . . . . . . . . Ballistic Cannon 5 | . 1 . . . 3 1 . Launcher 3 | . . . . . 1 1 1 Special Weapon . | . . . . . . . . Impact Weapon 1 | . 1 . . . . . . Slashing Weapon . | . . . . . . . . Piercing Weapon . | . . . . . . . . Special Melee Weapon . | . . . . . . . . Unidentified Prototypes . | . . . . . . . . Corrupted Parts 1 | . . . . . 1 . . System Corruption 1 | . . . . . 1 . . Parts Lost 7 | . . 1 . . . 2 4 Power . | . . . . . . . . Propulsion 2 | . . 1 . . . . 1 Utility 2 | . . . . . . 1 1 Weapon 3 | . . . . . . 1 2 Highest Loss Streak 4 | . . 1 . . . 1 4 To Critical Strikes . | . . . . . . . . Average Slot Usage (%) 95 | . 100 92 85 92 99 97 92 Engine 11 | . 14 14 14 14 9 7 7 Treads 27 | . 26 21 14 21 36 37 37 Device 2 | . 2 . . . 8 . . Storage 11 | . 14 14 14 14 9 7 7 Processor 4 | . . . . . 8 14 15 Protection 11 | . 11 14 14 14 9 6 5 Energy Gun 2 | . 1 . . 10 4 . . Ballistic Gun 7 | . 14 14 14 3 . . . Ballistic Cannon 12 | . 7 14 14 14 13 14 12 Naked Turns . | . . . . . . . . Heaviest Build 49 | 12 33 33 33 40 49 49 46 Greatest Support 105 | 20 40 40 20 40 85 105 105 Greatest Overweight (x) 1 | . . 1 1 1 . . . Average Overweight (x) . | . . . 1 . . . . Largest Inventory Capacity 15 | 8 15 15 15 15 15 15 15 Average Capacity 14 | 8 12 15 15 15 15 15 15 Most Carried 15 | 8 15 15 15 15 15 15 15 Average Carried 14 | 7 12 14 14 14 14 14 14 Final Capacity 15 | 8 15 15 15 15 15 15 15 Final Carried 15 | 8 15 15 15 15 15 15 13 Class Distribution -------------------- 70% | Mutant 15% | Skirmisher 9% | Scavenger-Skirmisher 4% | Scavenger-Mutant Dominant Class ---------------- Mutant | -10/Materials Mutant | -10/Mines Mutant | -10/Exiles Mutant | -9/Mines Skirmisher | -8/Materials Skirmisher | -7/Factory Scavenger-Mutant | -7/Garrison Resources | -11 -10 -10 -10 -9 -8 -7 -7 ----------- Run | Yrd Mat Min Exi Min Mat Fac Gar Matter Collected 1869 | 239 348 257 . 74 399 552 . Remotely . | . . . . . . . . Salvage Created 1664 | 105 357 151 . . 402 607 42 Parts 97 | 4 21 8 . . 21 39 4 Haulers Intercepted 9 | . 2 . . . 4 3 . Recyclers Shooed 2 | . 1 . . . . 1 . Parts Field Recycled . | . . . . . . . . Retrieved Matter . | . . . . . . . . Parts Self-Destructed . | . . . . . . . . Prevented . | . . . . . . . . Kills | -11 -10 -10 -10 -9 -8 -7 -7 ------- Run | Yrd Mat Min Exi Min Mat Fac Gar Combat Hostiles Destroyed 32 | . 5 4 . . 5 16 2 Guns 4 | . . 1 . . 3 . . Cannons 26 | . 3 3 . . 2 16 2 Classes Destroyed 12 | 2 5 . . . 1 4 . Worker 3 | . 3 . . . . . . Builder 3 | . 1 . . . . 2 . Tunneler 2 | 2 . . . . . . . Hauler 9 | . 2 . . . 4 3 . Recycler 1 | 1 . . . . . . . Watcher 4 | . 1 . . . 1 2 . Swarmer 5 | . . . . . . 3 2 Grunt 17 | . 5 4 . . 3 5 . Brawler 1 | . . . . . . 1 . Sentry 5 | . . . . . 2 3 . Hunter 1 | . . . . . . 1 . Programmer 3 | . . . . . . 3 . Best Kill Streak 5 | 2 2 2 . . 2 5 1 Combat Bots Only 4 | . 2 2 . . 2 4 1 Max Kills in Single Turn 2 | 1 1 1 . . 1 2 1 Gunslinging . | . . . . . . . . Exploded . | . . . . . . . . Melee . | . . . . . . . . Uniques/NPCs Destroyed . | . . . . . . . . Combat | -11 -10 -10 -10 -9 -8 -7 -7 -------- Run | Yrd Mat Min Exi Min Mat Fac Gar Hostile Shots Fired 254 | . 26 26 . . 23 132 47 Missed 78 | . 3 9 . . 6 45 15 Damage Taken 2478 | . 323 233 . . 352 1114 456 Core 197 | . 58 28 . . 41 30 40 Absorbed by Shields . | . . . . . . . . Core Remaining (%) 85 | 100 . . . 65 92 . . Volleys Fired 134 | 13 22 13 . . 26 56 4 Largest 2 | 2 2 2 . . 2 2 2 Hottest 120 | 60 60 55 . . 104 96 120 Shots Fired 259 | 26 41 27 1 . 49 110 5 Gun 76 | 26 26 14 . . 10 . . Cannon 177 | . 15 13 1 . 36 108 4 Launcher 6 | . . . . . 3 2 1 Special . | . . . . . . . . Kinetic 225 | 13 38 27 1 . 36 108 2 Thermal 28 | 13 3 . . . 10 . 2 Explosive 6 | . . . . . 3 2 1 Electromagnetic . | . . . . . . . . Robot Hit Streak 14 | 6 6 7 . . 14 13 2 Robot Miss Streak 6 | 2 4 2 . . 6 4 1 Penetration Max . | . . . . . . . . Secondary Targets . | . . . . . . . . Shots Hit Robots 166 | 17 35 18 . . 25 68 3 Core Hits 72 | 4 13 7 . . 13 33 2 Critical Kills . | . . . . . . . . Critical Parts Destroyed 3 | 1 2 . . . . . . Critical Strikes 13 | 1 2 1 . . 2 7 . Destroy 1 | 1 . . . . . . . Blast 10 | . . 1 . . 2 7 . Smash 2 | . 2 . . . . . . Melee Attacks 14 | . 14 . . . . . . Impact 14 | . 14 . . . . . . Slashing . | . . . . . . . . Piercing . | . . . . . . . . Sneak Attacks 4 | . 4 . . . . . . Combat Hostiles . | . . . . . . . . Follow-up Attacks . | . . . . . . . . Damage Inflicted 4017 | 207 791 281 . . 583 1998 157 Guns 700 | 207 184 135 . . 174 . . Cannons 2770 | . 194 146 . . 400 1900 130 Explosions 134 | . . . . . 9 98 27 Melee 409 | . 409 . . . . . . Ramming 4 | . 4 . . . . . . Kinetic 3096 | 105 366 281 . . 400 1900 44 Thermal 364 | 102 12 . . . 174 . 76 Explosive 134 | . . . . . 9 98 27 Electromagnetic . | . . . . . . . . Impact 419 | . 409 . . . . . 10 Slashing . | . . . . . . . . Piercing . | . . . . . . . . Highest Corruption 2 | . 1 1 1 1 1 2 2 Average Corruption 1 | . 1 1 1 1 1 1 2 Corruption Purged . | . . . . . . . . Corruption Blocked . | . . . . . . . . Effects 41 | . 13 6 12 5 1 4 . Message Errors 10 | . 3 1 3 1 . 2 . Matter Fused 5 | . 1 1 2 . . 1 . Heat Flow Errors 5 | . 1 1 2 1 . . . Energy Discharges 6 | . 2 1 2 . 1 . . Data Loss (minor) 8 | . 4 1 1 2 . . . Data Loss (major) 4 | . 1 . 1 1 . 1 . Misfires 3 | . 1 1 1 . . . . Overload Shots . | . . . . . . . . Overflow Damage 88 | . 77 . . . 9 2 . Projectiles 13 | . 2 . . . 9 2 . Explosions . | . . . . . . . . Melee 75 | . 75 . . . . . . Knockbacks 25 | . 5 1 . . 1 18 . Impact . | . . . . . . . . Kinetic 23 | . 5 1 . . 1 16 . Secondary 2 | . . . . . . 2 . Self-Inflicted Damage . | . . . . . . . . Shots . | . . . . . . . . Rammed 1 | . 1 . . . . . . Targets Rammed 1 | . 1 . . . . . . Kicked . | . . . . . . . . Crushed . | . . . . . . . . Highest Temperature 387 | . 225 224 239 130 387 210 132 Average Temperature 68 | . 45 54 99 71 105 54 46 Received Heat Transfer 666 | . 201 126 . . 153 186 . Siege Activations . | . . . . . . . . Robots Corrupted . | . . . . . . . . Combat Hostiles . | . . . . . . . . Parts Fried 3 | . 3 . . . . . . Impact Corruptions 5 | . 5 . . . . . . Robots Melted . | . . . . . . . . Combat Hostiles . | . . . . . . . . Parts Melted 2 | . . . . . 2 . . Heat Transferred 743 | 225 25 . . . 333 . 160 Parts Sabotaged . | . . . . . . . . Parts Stolen . | . . . . . . . . Parts Stripped . | . . . . . . . . Power Chain Reactions . | . . . . . . . . Alert | -11 -10 -10 -10 -9 -8 -7 -7 ------- Run | Yrd Mat Min Exi Min Mat Fac Gar Peak Influence 340 | 15 150 90 . . 72 340 288 Initial 238 | . 9 25 . . . 4 238 Average 51 | 10 42 37 . . 21 154 249 Maximum Alert Level 1 | . . . . . . 1 1 Low Security (%) 92 | 100 100 100 . 100 100 63 . Level 1 7 | . . . . . . 36 100 Level 2 . | . . . . . . . . Level 3 . | . . . . . . . . Level 4 . | . . . . . . . . Level 5 . | . . . . . . . . High Security . | . . . . . . . . Max Security . | . . . . . . . . Squads Dispatched 15 | . 1 . . 1 3 10 . Investigation 4 | . . . . 1 1 2 . Extermination 2 | . . . . . . 2 . Reinforcement 4 | . 1 . . . 1 2 . Assault 1 | . . . . . 1 . . Garrison 4 | . . . . . . 4 . Intercept . | . . . . . . . . Searches Triggered . | . . . . . . . . Construction Impeded . | . . . . . . . . Haulers Reinforced 1 | . . . . . . 1 . Active Scanning Responses . | . . . . . . . . Cargo Convoy Interrupts . | . . . . . . . . Stealth | -11 -10 -10 -10 -9 -8 -7 -7 --------- Run | Yrd Mat Min Exi Min Mat Fac Gar Distress Signals 4 | . 1 . . . 2 1 . Communications Jammed . | . . . . . . . . Distress Signals . | . . . . . . . . Times Spotted 70 | . 20 4 . . 7 27 12 Peak Tracking Total 10 | . 3 2 . . 2 4 10 Tactical Retreats 1 | . . . . . . . 1 Traps | -11 -10 -10 -10 -9 -8 -7 -7 ------- Run | Yrd Mat Min Exi Min Mat Fac Gar Traps Triggered 5 | . 1 . . . 2 2 . Indirectly . | . . . . . . . . Trap Hack Attempts . | . . . . . . . . Triggered . | . . . . . . . . Disarmed . | . . . . . . . . Reprogrammed . | . . . . . . . . Reused . | . . . . . . . . Traps Extracted . | . . . . . . . . Installed . | . . . . . . . . Triggered . | . . . . . . . . Machines | -11 -10 -10 -10 -9 -8 -7 -7 ---------- Run | Yrd Mat Min Exi Min Mat Fac Gar Machines Disabled 3 | . . 1 . . . 2 . Max in Single Turn 1 | . . 1 . . . 1 . Garrison Access 1 | . . . . . 1 . . Machines Repaired . | . . . . . . . . Machines Dismantled . | . . . . . . . . Machines Sabotaged . | . . . . . . . . Overloaded Fab Kills . | . . . . . . . . Hacking | -11 -10 -10 -10 -9 -8 -7 -7 --------- Run | Yrd Mat Min Exi Min Mat Fac Gar Machines Accessed 19 | . 7 . 4 1 4 3 . Terminals 9 | . 6 . . . 2 1 . Fabricators . | . . . . . . . . Repair Stations . | . . . . . . . . Recycling Units 1 | . 1 . . . . . . Scanalyzers 2 | . . . . . 2 . . Garrison Access 2 | . . . . . . 2 . Total Hacks 67 | . 20 . 19 1 21 6 . Successful 43 | . 6 . 19 1 16 1 . Failed 24 | . 14 . . . 5 5 . Catastrophic 1 | . 1 . . . . . . Database Lockouts . | . . . . . . . . Manual 17 | . 10 . 1 . 3 3 . Terminals 29 | . 19 . . . 7 3 . Fabricators . | . . . . . . . . Repair Stations . | . . . . . . . . Recycling Units 1 | . 1 . . . . . . Scanalyzers 14 | . . . . . 14 . . Garrison Access 3 | . . . . . . 3 . Terminal Hacks 26 | . 3 . 19 1 3 . . Record 18 | . . . 18 . . . . Robot Analysis 1 | . . . . . 1 . . Prototype ID Bank 1 | . . . . . 1 . . Open Door 1 | . . . . 1 . . . Unreport Threat 1 | . 1 . . . . . . Maintenance Status 1 | . . . . . 1 . . Zone Layout 2 | . 2 . . . . . . Derelict Proto ID Bank 1 | . . . 1 . . . . Fabricator Hacks . | . . . . . . . . Repair Station Hacks . | . . . . . . . . Recycling Unit Hacks 1 | . 1 . . . . . . Report Inventory 1 | . 1 . . . . . . Scanalyzer 12 | . . . . . 12 . . Insert Component 6 | . . . . . 6 . . Analyze 6 | . . . . . 6 . . Garrison Access Hacks 1 | . . . . . . 1 . Unlock Access 1 | . . . . . . 1 . Unauthorized Hacks 3 | . 2 . . . 1 . . Terminals 3 | . 2 . . . 1 . . Botnet 3 | . 2 . . . 1 . . Fabricators . | . . . . . . . . Repair Stations . | . . . . . . . . Recycling Units . | . . . . . . . . Scanalyzers . | . . . . . . . . Garrison Access . | . . . . . . . . Data Cores Recovered . | . . . . . . . . Used . | . . . . . . . . Hacking Detections 13 | . 7 . . . 3 3 . Full Trace Events 2 | . . . . . . 2 . Feedback Events . | . . . . . . . . Feedback Blocked . | . . . . . . . . Robot Schematics Acquired . | . . . . . . . . Robots Built . | . . . . . . . . Authchips . | . . . . . . . . Time . | . . . . . . . . Total Robot Build Rating . | . . . . . . . . Part Schematics Acquired 6 | . . . . . 6 . . Parts Built . | . . . . . . . . Authchips . | . . . . . . . . Time . | . . . . . . . . Total Part Build Rating . | . . . . . . . . Parts Repaired . | . . . . . . . . Time . | . . . . . . . . Parts Recycled . | . . . . . . . . Recycled Matter . | . . . . . . . . Retrieved Matter . | . . . . . . . . Retrieved Components . | . . . . . . . . Parts Scanalyzed 6 | . . . . . 6 . . Part Schematics Acquired 6 | . . . . . 6 . . Parts Damaged 1 | . . . . . 1 . . Bothacking | -11 -10 -10 -10 -9 -8 -7 -7 ------------ Run | Yrd Mat Min Exi Min Mat Fac Gar Used RIF Installer . | . . . . . . . . Robots Hacked . | . . . . . . . . Non-combat . | . . . . . . . . Combat . | . . . . . . . . Robot Hacks Applied . | . . . . . . . . Relay Couplers Released 1 | . . . . . 1 . . Machine Destruction 1 | . . . . . 1 . . Fabnet Peak Effective % . | . . . . . . . . Robots Rewired . | . . . . . . . . Allies Hacked . | . . . . . . . . Hacks Repelled . | . . . . . . . . Allies | -11 -10 -10 -10 -9 -8 -7 -7 -------- Run | Yrd Mat Min Exi Min Mat Fac Gar Total Allies . | . . . . . . . . Largest Group . | . . . . . . . . Highest-Rated Group . | . . . . . . . . Highest-Rated Ally . | . . . . . . . . Total Orders . | . . . . . . . . Ally Attacks . | . . . . . . . . Total Damage . | . . . . . . . . Kills . | . . . . . . . . Allies Corrupted . | . . . . . . . . Allies Melted . | . . . . . . . . Intel | -11 -10 -10 -10 -9 -8 -7 -7 ------- Run | Yrd Mat Min Exi Min Mat Fac Gar Robot Analysis Total 1 | . . . . . 1 . . Derelict Logs Recovered 2 | . . 1 . 1 . . . Drone Launches . | . . . . . . . . Drone Recoveries . | . . . . . . . . Exploration | -11 -10 -10 -10 -9 -8 -7 -7 ------------- Run | Yrd Mat Min Exi Min Mat Fac Gar Turns Passed 7580 | 119 1536 894 1127 953 1752 1106 93 Spaces Moved 3843 | 64 849 426 468 481 952 551 52 Core . | . . . . . . . . Treads 3724 | . 794 426 468 481 952 551 52 Legs 119 | 64 55 . . . . . . Wheels . | . . . . . . . . Hover . | . . . . . . . . Flight . | . . . . . . . . Fastest Speed 120 | 120 120 160 240 160 156 159 158 Average Speed 175 | 120 157 193 240 192 158 159 158 Slowest Speed 240 | 120 160 240 240 240 160 159 159 Overloaded Moves . | . . . . . . . . Propulsion Burnouts . | . . . . . . . . Robots Hopped . | . . . . . . . . Cave-ins Triggered . | . . . . . . . . Exploration Rate (%) 54 | 5 78 72 89 92 66 22 12 Regions Visited 7 Branch Regions 3 Pre-discovered Areas 2 | . . 1 1 . . . . Known Exits Taken 1 | . . . . . . 1 . Unknown Exits Taken 6 | 1 1 1 1 1 1 . . Scrap Searched 3 | . . 1 . 2 . . . Spaces Dug 15 | . . . . . 15 . . Terrain Destroyed 68 | . . . . . 49 19 . Melee . | . . . . . . . . Projectile 21 | . . . . . 13 8 . AOE 47 | . . . . . 36 11 . Terrain Rammed . | . . . . . . . . Walls Destroyed . | . . . . . . . . Machines Disabled . | . . . . . . . . Actions | -11 -10 -10 -10 -9 -8 -7 -7 --------- Run | Yrd Mat Min Exi Min Mat Fac Gar Total 4426 | 79 991 472 475 519 1158 674 58 Wait 280 | . 68 30 . 10 132 40 . Move 3836 | 63 848 425 467 480 951 550 52 Hop . | . . . . . . . . Pick Up 54 | 2 17 2 4 11 13 5 . Fast Attach 9 | 1 1 . . 1 2 4 . Attach 13 | . 1 . . . 4 6 2 Detach 4 | . 1 . . . 1 2 . Swap 24 | . 5 . . 4 11 4 . Drop 57 | . 13 2 4 13 18 7 . Fire 134 | 13 22 13 . . 26 56 4 Melee 14 | . 14 . . . . . . Ram . | . . . . . . . . Kick . | . . . . . . . . Crush 1 | . 1 . . . . . . Escape Stasis . | . . . . . . . . Rewire . | . . . . . . . . Trap . | . . . . . . . . Miscellaneous . | . . . . . . . . Route ------- -11/Scrapyard -10/Materials (discovered 3 exits: [*Mat x2] / [*Min]) -10/Mines (discovered 3 exits: [*Mat x2] / *Exi) -10/Exiles (discovered 2 exits: *Min x2) -9/Mines (discovered 2 exits: *Mat x2) -8/Materials (discovered 2 exits: *Fac x2) -7/Factory -7/Garrison History --------- Turn | Location | Event 1 | -11/Scrapyard | Discovered new exit (range 1) 120 | -11/Scrapyard | Entered Materials 318 | -10/Materials | Build established: Mutant 549 | -10/Materials | Discovered new exit (range 3) 656 | -10/Materials | Discovered new exit (range 5) 1032 | -10/Materials | Discovered new exit (range 5) 1656 | -10/Materials | Entered Mines 1740 | -10/Mines | Discovered new exit (range 6) 1743 | -10/Mines | Discovered new exit (range 12) 1804 | -10/Mines | Deemed a non-threat by the Exiles lab entrance 1806 | -10/Mines | Discovered new exit (range 5) 2185 | -10/Mines | Learned location of Mines (-9) 2550 | -10/Mines | Entered Exiles 2591 | -10/Exiles | Discovered new exit (range 14) 2637 | -10/Exiles | Met 8R-AWN 2670 | -10/Exiles | Met EX-HEX 2735 | -10/Exiles | Met EX-BIN 2826 | -10/Exiles | Met EX-DEC 2838 | -10/Exiles | Learned location of Zion (-7) 2935 | -10/Exiles | Visited The Gauntlet 3234 | -10/Exiles | Aligned with FarCom system 3237 | -10/Exiles | Given EX-Vault access code 3335 | -10/Exiles | Opened EX-Vault 3360 | -10/Exiles | Found Gui. Plasma Cannon 3409 | -10/Exiles | Warned to stay clear of 0b10 Research branches 3648 | -10/Exiles | Discovered new exit (range 12) 3677 | -10/Exiles | Left Exiles lab with Gui. Plasma Cannon 3677 | -10/Exiles | Entered Mines 3763 | -9/Mines | Met a Derelict bent on vengeance 3820 | -9/Mines | Met a Derelict shopkeep closing up shop 4271 | -9/Mines | Discovered new exit (range 16) 4290 | -9/Mines | Learned Materials emergency access door positions 4466 | -9/Mines | Discovered new exit (range 10) 4576 | -9/Mines | Received a Rocket Launcher from a helpful Derelict 4630 | -9/Mines | Entered Materials 4630 | -8/Materials | Evolved 4 slots: Propulsion x2, Utility x2 4958 | -8/Materials | Build established: Skirmisher 5334 | -8/Materials | Met 7R-MNS 5485 | -8/Materials | Discovered new exit (range 20) 6009 | -8/Materials | Build established: Mutant 6098 | -8/Materials | Discovered new exit (range 3) 6382 | -8/Materials | Entered Factory 6382 | -7/Factory | Evolved 2 slots: Propulsion x1, Weapon x1 6383 | -7/Factory | Caught up to 7R-MNS 6432 | -7/Factory | Garrison activated, responded to threat 6691 | -7/Factory | Build established: Skirmisher 7168 | -7/Factory | Build established: Scavenger-Skirmisher 7478 | -7/Factory | Identified exit to Garrison 7488 | -7/Factory | Entered Garrison 7581 | -7/Garrison | Self-destructed Last Messages --------------- 07460_ K-01 Serf cleans the Subcomponent Replicator. 07463_ K-01 Serf collects debris. 07478_ Connecting with Garrison Access... >>Unlock Access door unlocked. 07478_ EXIT=UNLOCKED: GARRISON 07478_ Connecting with Garrison Access... LOCATION=GARRISON GOAL=ESCAPE 07488_ Receiving FarCom transmissions... 07555_ Concussive RPG expended. 07555_ S-27 Virus knocked back. 07556_ S-27 Virus destroyed. 07557_ Slug penetrates Wall. 07560_ Adv. Assault Cannon destroyed. 07567_ Imp. Light Armor Plating destroyed. 07571_ Adv. Assault Cannon destroyed. 07572_ Imp. Treads destroyed. 07577_ S-27 Virus destroyed. Map ----- +----------------------------------------------------+ | ???????????????????????????????##+##?????????????? | | ???????????????????????????????# ?????????? ?? | | ??????????????????????????????? ????????? ?? | | ??????????????????????????????? ???????? ?? | | ???????????????????????????????# #?????#? #??? | | ???????????????????????????????# ##??? ## #??? | | ???????????????????????????????" ?? "??? | | ???????????????????????????????" ??? ???? | | ???????????????????????????????" ?? ?????? | | ???????????????????????????????" ?? ??????? | | ???????????????????????????????# #? #??? #??? | | ???????????????????????????????# ## ## #??? | | ???????????????????????????????# % #??? | | ???????????????????????????????# ??????? | | ???????????????????????????????# =% ??????????? | | ????????????????????????????????# #?????????????? | | ????????????????????????????????# #?s???????????? | | ????????????????????????????????# #?????????????? | | ??????????????????????Y?????????# #?????????????? | | ????????????????????##???????h??# #?????????????? | | ???????????????????? ??????????# #?????????????? | | ????????????????????# ??????????# #?????????????? | | ????????????????gg??# ??????#???# #?????????????? | | ????????????????????# ????? #???#Y #?????????????? | | ????????????????????# #####+#####Y #?????????????? | | ????????????????????# @s[=* #?????????????? | | ????????????????????# s%[ss #?????????????? | | ????????????????????## ###+########?????????????? | | ?????????????????????# #?# #????????????????????? | | ?????????????????????# #?# #????????????????????? | | ?????????????????????# #?# #????????????????????? | | ?????????????????????# #? #????????????????????? | | ????????????????YY???# #?# #????????????????????? | | ?????????????????????# #?# #????????????????????? | | ?????????????????????# #?# ????????????????????? | | ???????????????????### #?###????????????????????? | | ???????????????????# #????????????????????????? | | ???????????????????# #????????????????????????? | | ???????????????????# #????????????????????????? | | ???????????????????######????????????????????????? | | ?????????????????????????????????????????????????? | | ?????????????????????????????????????????????????? | | ?????????????????????????????????????????????????? | | ?????????????????????????????????????????????????? | | ?????????????????????????????????????????????????? | | ?????????????????????????????????????????????????? | | ?????????????????????????????????????????????????? | | ?????????????????????????????????????????????????? | | ?????????????????????????????????????????????????? | | ?????????????????????????????????????????????????? | +----------------------------------------------------+ Best States ------------- Heat Dissipation 45 Energy Generation 16 Energy Capacity 290 Matter Stores 300 Matter Capacity 300 Sight Range 20 Terrain Scan Range 14 Terrain Scan Density 10 Armor Coverage 300 Evasion (%) 55 Targeting Accuracy 8 Recoil Reduction 5 Kinecelleration 30 Item Schematics ----------------- Xenon Bombardment Thruster | -8/Materials | Scanalyzed Kinecellerator | -8/Materials | Scanalyzed System Restoration Module | -8/Materials | Scanalyzed Particle Charger | -8/Materials | Scanalyzed Rocket Launcher | -8/Materials | Scanalyzed Matter Filter | -8/Materials | Scanalyzed Robot Schematics ------------------ None Fabricated ------------ Nothing Alien Tech Used ----------------- None Achievements -------------- None Challenges ------------ None Game ------ Seed AnalysisMiniSpoofer Manual? 0 Play Time 00:59:34 Cumulative 284.8 hours Start 2024.06.01 @ 14:58:40 End 2024.06.01 @ 17:32:43 Sessions 3 Manual Loads 0 Difficulty Rogue Special Mode None Game No. 166 Rogue 122 Adventurer 44 Explorer 0 Win Type - Total 2 Types 2/0/0/0/0/0/0/0/0 Lore% 58 Gallery% 62 Achievement% 58 Wizard Run 0 Options --------- Layout 2 ASCII 0 Keyboard 1 Movement Vi Keybinds 1 Fullscreen 2 Font 24/Smallcaps Map View 50x44 Zoom Use 0% Tactical HUD 1 Map Filters NONE Filters NONE Steam 1 RUN: 3f22e217-143d-42e4-a48e-15d454a8d7b6